bitfinex/quotes_ETHUSD_20211001
["timestamp","ask_amount","ask_price","bid_price","bid_amount"]
[1633063391678,3.3360435,2996.7,2996.1,3.5377113]
[1633063391880,3.3360435,2996.7,2996.1,0.2]
[1633063393081,0.85686146,2996.3,2996.1,0.2]
[1633063394087,0.85686146,2996.3,2995.7,3.338247]
[1633063394088,0.24805594,2995.9,2995.5,0.003]
[1633063394384,0.24805594,2995.9,2995.3,7.61362587]
[1633063394385,0.051351,2995.6,2995.4,0.003]
[1633063394683,5.01006,2995.5,2995.4,0.003]
[1633063394882,5.9922197,2995.5,2995.4,0.003]
[1633063395085,7.2862197,2995.5,2995.4,0.003]
[1633063395284,8.53094146,2995.5,2995.4,0.003]
[1633063395485,24.53094146,2995.5,2995.4,0.003]
[1633063395682,9.53094146,2995.5,2995.4,0.003]
[1633063396084,8.53094146,2995.5,2995.4,0.003]
[1633063397681,6.30406,2995.5,2995.4,0.003]
[1633063397883,5.01006,2995.5,2995.4,0.003]
[1633063398882,7.02766229,2995.5,2995.4,0.003]
[1633063399084,8.52723247,2995.5,2995.4,0.003]
[1633063403287,9.52723247,2995.5,2995.4,0.003]
[1633063403488,8.52723247,2995.5,2995.4,0.003]
[1633063403687,7.23323247,2995.5,2995.4,0.003]
[1633063403887,8.52723247,2995.5,2995.4,0.003]
[1633063404090,7.23323247,2995.5,2995.4,0.003]
[1633063405090,8.52723247,2995.5,2995.4,0.003]
[1633063405289,23.52723247,2995.5,2995.4,0.003]
[1633063405691,22.23323247,2995.5,2995.4,0.003]
[1633063407492,23.52723247,2995.5,2995.4,0.003]
[1633063408295,12.19624765,2995.3,2994.6,0.203]
[1633063408496,12.19624765,2995.3,2994.6,0.003]
[1633063408497,15.056643,2994.8,2994.6,0.003]
[1633063408694,15.056643,2994.8,2994.7,0.003]
[1633063408695,16.243343,2994.8,2994.7,0.003]
[1633063408895,0.89010124,2994.1,2994.0,0.003]
[1633063409094,2.26975872,2994.1,2994.0,0.003]
[1633063409496,2.26975872,2994.1,2994.0,0.006]
[1633063409695,7.28166872,2994.1,2994.0,0.006]
[1633063416104,8.57566872,2994.1,2994.0,0.006]
[1633063416302,8.57566872,2994.1,2993.8,0.006]
[1633063416303,2.41216,2993.9,2993.8,0.006]
[1633063416501,2.41216,2993.9,2993.5,0.009]
[1633063416502,1.21086495,2993.7,2993.5,0.009]
[1633063417701,6.22438495,2993.7,2993.5,0.009]
[1633063420101,7.71838495,2993.7,2992.9,0.004]
[1633063420303,7.71838495,2993.7,2992.6,0.006]
[1633063420304,15.0,2993.2,2992.6,0.006]
[1633063420504,0.059186,2992.9,2992.6,0.006]
[1633063420701,0.2,2992.8,2992.6,0.006]
[1633063420903,2.82518678,2992.8,2992.6,0.006]
[1633063421101,0.87860651,2992.7,2992.6,0.006]
[1633063421304,7.27008398,2992.7,2992.6,0.006]
[1633063422301,7.47008398,2992.7,2992.6,0.006]
[1633063422503,9.96438099,2992.7,2992.6,0.006]
[1633063422702,7.47008398,2992.7,2992.6,0.006]
[1633063422968,8.76408398,2992.7,2992.6,0.006]
[1633063423104,11.44521281,2992.7,2992.3,0.006]
[1633063423303,1.82435404,2992.5,2992.3,0.006]
[1633063423504,18.74985404,2992.5,2992.3,0.006]
[1633063424105,5.04385404,2992.5,2992.3,0.006]
[1633063424304,6.9412,2992.5,2992.3,0.006]
[1633063425306,23.2352,2992.5,2992.3,0.006]
[1633063425504,21.9412,2992.5,2992.3,0.006]
[1633063425705,6.9412,2992.5,2992.3,0.006]
[1633063426908,6.9412,2992.5,2992.4,0.00706091]
[1633063428504,6.9412,2992.5,2992.4,0.00606091]
[1633063429908,8.2352,2992.5,2992.4,0.00606091]
[1633063430108,23.2352,2992.5,2992.4,0.00606091]
[1633063430308,6.9412,2992.5,2992.4,0.00606091]
[1633063430509,1.9255,2992.5,2992.4,0.00606091]
[1633063430707,0.2,2992.5,2992.4,0.00606091]
[1633063434810,0.2,2992.5,2991.4,1.31335061]
[1633063434811,2.99910593,2991.7,2991.4,1.31335061]
[1633063435012,2.99910593,2991.7,2991.1,0.006]
[1633063435013,3.68940673,2991.2,2991.1,0.006]
[1633063435814,4.91343431,2991.2,2991.1,0.006]
[1633063436012,3.68940673,2991.2,2991.1,0.006]
[1633063436411,18.68940673,2991.2,2991.1,0.006]
[1633063436616,3.68940673,2991.2,2991.1,0.006]
[1633063437412,5.13776194,2991.2,2991.1,0.00721107]
[1633063438613,3.68940673,2991.2,2991.1,0.00721107]
[1633063439814,3.68940673,2991.2,2991.1,1.30121107]
[1633063440614,3.68940673,2991.2,2991.1,0.00721107]
[1633063442018,3.68940673,2991.2,2991.1,2.24007416]
[1633063442818,3.68940673,2991.2,2991.1,0.94607416]
[1633063443018,1.1974925,2991.7,2991.6,0.71291442]
[1633063443619,1.1974925,2991.7,2991.4,0.2]
[1633063445078,0.003,2992.1,2991.8,4.77556338]
[1633063445278,0.003,2992.1,2992.0,0.05354588]
[1633063445477,0.003,2992.5,2992.0,0.25354588]
[1633063445678,0.003,2992.1,2992.0,0.25354588]
[1633063446078,0.003,2992.1,2992.0,2.2597876]
[1633063446278,0.003,2992.1,2992.0,3.60383638]
[1633063446477,0.003,2992.1,2992.0,4.60383638]
[1633063447877,0.003,2992.1,2992.0,2.59759466]
[1633063448078,0.003,2992.1,2992.0,1.22592388]
[1633063448280,0.003,2992.1,2992.0,0.22592388]
[1633063450479,0.003,2992.1,2992.0,0.2]
[1633063452487,0.003,2992.1,2991.8,4.77556338]
[1633063452488,0.051405,2992.1,2991.8,4.77556338]
[1633063452883,0.003,2992.0,2991.8,4.77556338]
[1633063453885,0.003,2992.0,2991.8,5.77988691]
[1633063454683,0.003,2992.0,2991.8,4.77556338]
[1633063458289,0.003,2992.0,2991.9,0.00090256]
[1633063462697,0.003,2992.0,2991.9,1.29490256]
[1633063462898,0.003,2992.0,2991.9,0.00090256]
[1633063464898,0.003,2992.0,2991.9,3.83040256]
[1633063465297,0.003,2992.0,2991.9,4.83040256]
[1633063465500,0.003,2992.0,2991.9,5.98157406]
[1633063465799,0.003,2992.0,2991.9,12.66599406]
[1633063466001,0.003,2992.0,2991.9,11.37199406]
[1633063466198,0.003,2992.0,2991.9,1.52640256]
[1633063466798,0.003,2992.0,2991.9,2.82040256]
[1633063466999,0.003,2992.0,2991.9,9.84385256]
[1633063467799,0.003,2992.0,2991.9,9.96781524]
[1633063468500,0.003,2992.0,2991.9,2.52640256]
[1633063468701,0.003,2992.0,2991.9,1.52640256]
[1633063475507,0.003,2992.0,2991.9,6.54053256]
[1633063477309,0.003,2992.0,2991.9,1.52640256]
[1633063478712,0.003,2992.0,2991.9,6.54044256]
[1633063478912,0.003,2992.0,2991.9,8.00954951]
[1633063479972,0.003,2992.0,2991.9,9.39220376]
[1633063483717,0.003,2992.0,2991.9,11.43194619]
[1633063485975,0.003,2992.0,2991.9,12.00833542]
[1633063486121,0.003,2992.0,2991.9,12.00836711]
[1633063486719,0.003,2992.0,2991.9,13.88658994]
[1633063486919,0.003,2992.0,2991.9,22.96088691]
[1633063487519,0.003,2992.0,2991.9,36.37615985]
[1633063487719,0.003,2992.0,2991.9,38.99117391]
[1633063488723,0.003,2992.0,2991.9,37.06940097]
[1633063489121,0.003,2992.0,2991.9,38.99256025]
[1633063489722,0.003,2992.0,2991.9,37.06940097]
[1633063490120,0.003,2992.0,2991.9,38.99338635]
[1633063490321,0.003,2992.0,2991.9,37.06940097]
[1633063491524,0.003,2992.5,2992.0,2.17408655]
[1633063491723,0.003,2992.5,2992.3,1.92446407]
[1633063491988,0.003,2992.5,2992.4,28.07380371]
[1633063492122,0.003,2992.5,2992.4,38.11830789]
[1633063492323,0.003,2992.5,2992.4,38.78109598]
[1633063492521,0.003,2992.5,2992.4,39.60352529]
[1633063492721,0.003,2992.5,2992.4,44.29688621]
[1633063492922,0.003,2992.5,2992.4,42.37255209]
[1633063493321,0.003,2992.5,2992.4,22.89255209]
[1633063493524,0.003,2992.5,2992.4,19.90480209]
[1633063493721,0.003,2992.5,2992.4,18.54463723]
[1633063493923,0.003,2992.5,2992.4,17.19749791]
[1633063494123,0.003,2992.5,2992.4,18.15978926]
[1633063494324,0.003,2992.5,2992.4,18.5446722]
[1633063494725,0.003,2992.5,2992.4,19.04569791]
[1633063496325,0.003,2992.5,2992.4,20.39284411]
[1633063496528,0.003,2994.0,2993.8,0.20038435]
[1633063496728,0.003,2994.0,2993.8,5.38896777]
[1633063496924,0.003,2994.0,2993.8,2.86843248]
[1633063497324,0.003,2994.0,2993.9,1.47268833]
[1633063497524,0.003,2994.0,2993.9,2.95781218]
[1633063498528,0.003,2994.0,2993.9,1.67268833]
[1633063498927,0.003,2994.0,2993.9,0.2]
[1633063499129,0.003,2994.0,2993.9,6.68097675]
[1633063499729,0.003,2994.0,2993.9,7.93737927]
[1633063500329,0.003,2994.0,2993.9,6.68097675]
[1633063500729,0.003,2994.0,2993.9,6.68017956]
[1633063500988,0.003,2994.0,2993.9,5.21011]
[1633063501329,0.003,2994.0,2993.9,0.2]
[1633063502329,0.003,2994.0,2993.8,0.93573248]
[1633063502330,1.297,2994.0,2993.8,0.93573248]
[1633063502530,2.46532269,2993.9,2993.8,0.93573248]
[1633063502729,0.003,2994.0,2993.8,0.93573248]
[1633063503330,1.23955306,2993.9,2993.8,0.93573248]
[1633063503535,7.54600306,2993.9,2993.8,0.93573248]
[1633063505331,6.25200306,2993.9,2993.8,0.93573248]
[1633063506997,1.23955306,2993.9,2993.8,0.93573248]
[1633063510943,5.01484,2994.0,2993.8,0.93573248]
[1633063511144,0.003,2994.0,2993.8,0.93573248]
[1633063512744,0.003,2994.0,2993.8,2.53623248]
[1633063513144,0.003,2994.0,2993.9,3.84377026]
[1633063513345,0.003,2994.0,2993.9,5.01904435]
[1633063513545,0.003,2994.0,2993.9,1.66927409]
[1633063514145,0.003,2994.0,2993.9,0.2]
[1633063514748,0.003,2994.0,2993.9,1.494]
[1633063514945,0.003,2994.0,2993.9,2.66879343]
[1633063515146,0.003,2994.0,2993.9,1.2]
[1633063516012,0.003,2994.0,2993.9,2.494]
[1633063516948,0.003,2994.0,2993.9,1.2]
[1633063517349,0.003,2994.0,2993.9,0.2]
[1633063517948,0.003,2994.0,2993.9,2.494]
[1633063519749,0.003,2994.0,2993.9,3.9553528]
[1633063519952,0.003,2994.0,2993.9,6.29587597]
[1633063520149,0.003,2994.0,2993.9,3.9553528]
[1633063520550,0.003,2994.0,2993.9,23.4353528]
[1633063521152,0.003,2994.0,2993.9,24.4453528]
[1633063521351,0.003,2994.0,2993.9,40.09803447]
[1633063521550,0.003,2994.0,2993.9,38.06812874]
[1633063521751,0.003,2994.0,2993.9,11.3325528]
[1633063522013,0.003,2994.0,2993.9,8.8612]
[1633063522151,0.003,2994.0,2993.9,10.32159425]
[1633063522350,0.003,2994.0,2993.9,11.33159425]
[1633063522554,0.003,2994.0,2993.9,10.32159425]
[1633063522752,0.003,2994.0,2993.9,11.33159425]
[1633063522954,0.003,2994.0,2993.9,19.33159425]
[1633063523153,0.003,2994.0,2993.9,38.81159425]
[1633063526554,0.003,2994.0,2993.9,15.73141647]
[1633063526754,0.003,2994.0,2993.9,1.46039425]
[1633063526954,0.003,2994.0,2993.8,0.93573248]
[1633063527555,3.86277272,2993.9,2993.8,0.93573248]
[1633063527760,8.87478272,2993.9,2993.8,0.93573248]
[1633063528015,8.90017029,2993.9,2993.8,0.93573248]
[1633063528355,7.01415512,2993.9,2993.8,0.93573248]
[1633063528757,0.13120348,2993.7,2992.9,0.003]
[1633063528958,0.066746,2993.0,2992.9,0.003]
[1633063529159,1.791546,2993.0,2992.6,0.003]
[1633063529363,1.791546,2993.0,2992.1,0.006]
[1633063529556,4.25696417,2993.0,2991.8,0.259]
[1633063529756,1.43725251,2992.2,2992.1,0.91492784]
[1633063529956,1.43725251,2992.2,2991.9,0.009]
[1633063530157,1.43725251,2992.2,2992.1,0.006]
[1633063530360,1.9425,2992.3,2991.7,0.009]
[1633063530557,6.68622,2992.6,2991.8,1.46021449]
[1633063531018,9.13845973,2992.6,2992.0,0.90382914]
[1633063531157,6.68622,2992.6,2992.0,0.90382914]
[1633063531357,1.35095953,2992.3,2992.1,0.006]
[1633063531558,6.36579953,2992.3,2992.1,0.006]
[1633063531958,5.01484,2992.3,2992.1,0.006]
[1633063532960,5.01484,2992.3,2991.7,0.009]
[1633063533357,5.01484,2992.3,2991.8,1.46025131]
[1633063533558,5.01484,2992.3,2992.1,0.85050306]
[1633063534021,5.01484,2992.3,2992.2,0.006]
[1633063534359,5.01484,2992.3,2991.9,0.003]
[1633063534360,5.01484,2992.3,2991.7,0.009]
[1633063534760,5.01484,2992.3,2991.6,2.48]
[1633063534761,5.01484,2992.3,2992.0,0.009]
[1633063534960,5.01484,2992.3,2992.1,0.78305902]
[1633063535260,5.01484,2992.3,2992.2,0.006]
[1633063536060,13.19330093,2992.6,2992.2,0.006]
[1633063536462,8.17887093,2992.6,2992.2,0.006]
[1633063538861,8.17887093,2992.6,2991.6,0.009]
[1633063539061,5.01494,2992.3,2991.7,1.46024733]
[1633063539462,5.01494,2992.3,2992.0,0.78047849]
[1633063539662,8.17887093,2992.6,2992.0,0.78047849]
[1633063539862,8.17887093,2992.6,2992.1,0.006]
[1633063540467,5.01484,2992.4,2992.1,0.006]
[1633063542468,8.17887093,2992.6,2992.1,0.006]
[1633063542868,4.83576093,2992.6,2992.1,0.006]
[1633063543527,5.01476,2992.4,2992.1,0.006]
[1633063546732,5.03576093,2992.6,2992.1,0.006]
[1633063547329,5.01457,2992.5,2992.1,0.006]
[1633063548131,5.01457,2992.5,2991.7,0.00089216]
[1633063548132,5.01457,2992.5,2991.8,0.009]
[1633063548541,1.24538823,2992.1,2991.8,0.009]
[1633063548730,1.24538823,2992.1,2991.9,0.83764865]
[1633063548930,5.01492,2992.3,2991.9,0.83764865]
[1633063549131,0.047948,2992.5,2992.0,0.009]
[1633063549932,1.25810894,2992.5,2992.0,0.009]
[1633063550332,1.25810894,2992.5,2992.1,0.00081884]
[1633063550732,1.21016094,2992.5,2992.2,0.006]
[1633063551136,0.2,2992.6,2992.2,0.006]
[1633063552334,6.12452631,2992.5,2992.2,0.006]
[1633063554936,9.46788631,2992.5,2992.2,0.006]
[1633063555135,4.45323631,2992.5,2992.2,0.006]
[1633063556137,5.01493,2992.4,2992.2,0.006]
[1633063558140,1.10987631,2992.5,2992.2,0.006]
[1633063559340,6.12408631,2992.5,2992.2,0.006]
[1633063561143,6.12408631,2992.5,2992.0,0.009]
[1633063563946,9.46722631,2992.5,2992.0,0.009]
[1633063564149,4.45301631,2992.5,2992.0,0.009]
[1633063565448,5.015,2992.3,2992.0,0.009]
[1633063566947,5.015,2992.3,2991.6,0.009]
[1633063567147,5.015,2992.3,2991.5,0.012]
[1633063567547,5.87254035,2992.3,2991.8,0.94321009]
[1633063567947,5.87254035,2992.3,2991.9,0.009]
[1633063568547,9.21601035,2992.3,2991.9,0.009]
[1633063568747,4.20101035,2992.3,2991.5,0.012]
[1633063568948,4.20101035,2992.3,2991.4,0.012]
[1633063569148,1.3929499,2992.0,2991.4,0.012]
[1633063569352,1.3929499,2992.0,2991.6,0.91545653]
[1633063569748,5.01531,2991.9,2991.7,0.009]
[1633063570949,5.01501,2992.1,2991.7,0.009]
[1633063571349,5.01501,2992.1,2991.7,0.00992354]
[1633063571749,5.01501,2992.1,2991.8,0.009]
[1633063581954,5.01501,2992.1,2991.9,0.00088165]
[1633063582357,5.01501,2992.1,2992.0,0.009]
[1633063582955,7.40049202,2992.1,2992.0,0.009]
[1633063583157,5.01501,2992.1,2992.0,0.009]
[1633063583357,7.43016922,2992.1,2992.0,0.009]
[1633063583556,5.063139,2992.1,2992.0,0.009]
[1633063591964,5.01501,2992.1,2992.0,0.009]
[1633063592964,5.01501,2992.1,2991.8,0.009]
[1633063595467,6.734728,2992.9,2991.9,1.294]
[1633063595666,3.3430978,2993.4,2991.9,1.294]
[1633063595667,3.3430978,2993.4,2992.0,2.68297313]
[1633063595870,0.13120348,2993.7,2992.5,0.023974]
[1633063596071,0.13120348,2993.7,2992.6,0.2]
[1633063596269,5.01306,2993.2,2992.6,0.203]
[1633063596467,1.20224471,2993.0,2992.7,0.003]
[1633063596668,1.20224471,2993.0,2992.7,0.203]
[1633063597066,1.20224471,2993.0,2992.8,0.003]
[1633063597270,6.21577471,2993.0,2992.8,0.003]
[1633063597666,6.21577471,2993.0,2992.5,0.006]
[1633063598467,6.21577471,2993.0,2992.1,0.006]
[1633063598468,0.98599966,2992.3,2992.1,0.006]
[1633063598668,12.00067813,2993.0,2992.1,0.006]
[1633063598868,1.1893187,2992.3,2992.1,0.006]
[1633063599672,1.1893187,2992.3,2992.2,1.47675123]
[1633063600071,1.1893187,2992.3,2992.2,1.48275123]
[1633063600671,5.01439,2992.5,2992.2,1.48275123]
[1633063600870,6.68585,2992.8,2992.3,1.47850188]
[1633063601072,6.68585,2992.8,2992.3,1.48450188]
[1633063601269,6.68585,2992.8,2992.4,0.006]
[1633063601670,0.88783126,2992.9,2992.5,1.48086159]
[1633063601871,1.16062172,2992.8,2992.3,0.84058216]
[1633063602070,1.16062172,2992.8,2992.6,0.003]
[1633063602071,6.17449172,2992.8,2992.6,0.003]
[1633063602272,6.17449172,2992.8,2992.4,0.006]
[1633063602474,1.16062172,2992.8,2992.5,1.48386614]
[1633063602872,1.16062172,2992.8,2992.6,0.003]
[1633063603071,6.17443172,2992.8,2992.6,1.4850059]
[1633063603472,6.17443172,2992.8,2992.7,0.003]
[1633063603672,6.17443172,2992.8,2992.7,1.48591071]
[1633063603873,6.17443172,2992.8,2992.7,0.003]
[1633063604271,6.17443172,2992.8,2992.6,0.003]
[1633063604472,6.17443172,2992.8,2992.6,1.48587301]
[1633063604873,6.17443172,2992.8,2992.7,0.003]
[1633063605075,6.17443172,2992.8,2992.7,1.4859251]
[1633063605274,6.17443172,2992.8,2992.7,0.003]
[1633063605676,6.17443172,2992.8,2992.5,1.48892406]
[1633063605874,6.17443172,2992.8,2992.6,1.48287344]
[1633063606135,6.17443172,2992.8,2992.6,1.48587344]
[1633063606334,6.17443172,2992.8,2992.7,0.003]
[1633063606335,1.16062172,2992.8,2992.7,0.003]
[1633063606936,1.16062172,2992.8,2992.6,0.003]
[1633063607135,1.16062172,2992.8,2992.6,1.48580119]
[1633063607534,1.16062172,2992.8,2992.7,0.003]
[1633063607735,1.16062172,2992.8,2992.7,1.48579958]
[1633063607934,1.16062172,2992.8,2992.7,0.003]
[1633063608337,1.16062172,2992.8,2992.6,1.48578112]
[1633063608735,1.16062172,2992.8,2992.7,0.003]
[1633063609337,1.16062172,2992.8,2992.5,0.006]
[1633063609338,5.01399,2992.7,2992.5,0.006]
[1633063609539,5.01399,2992.7,2992.6,1.48273909]
[1633063609738,1.16062172,2992.8,2992.6,1.48273909]
[1633063609939,1.16062172,2992.8,2992.6,1.48573909]
[1633063610137,1.16062172,2992.8,2992.7,0.003]
[1633063610537,1.16062172,2992.8,2992.5,1.48269647]
[1633063610738,1.16062172,2992.8,2992.6,0.003]
[1633063610940,1.16062172,2992.8,2992.6,1.485642]
[1633063611338,1.16062172,2992.8,2992.7,0.003]
[1633063611553,1.16062172,2992.8,2992.7,1.48561783]
[1633063611737,1.16062172,2992.8,2992.7,0.003]
[1633063612142,1.16062172,2992.8,2992.6,0.003]
[1633063612340,1.16062172,2992.8,2992.6,1.48563349]
[1633063612739,1.16062172,2992.8,2992.7,0.003]
[1633063613341,1.16062172,2992.8,2992.6,0.003]
[1633063613543,1.16062172,2992.8,2992.6,1.48557762]
[1633063613942,1.16062172,2992.8,2992.7,0.003]
[1633063614544,6.17454172,2992.8,2992.5,1.48252037]
[1633063614744,6.17454172,2992.8,2992.6,0.003]
[1633063614945,6.17454172,2992.8,2992.6,1.48544753]
[1633063615346,6.17454172,2992.8,2992.7,0.003]
[1633063615949,6.17454172,2992.8,2992.4,1.4824379]
[1633063616148,6.17454172,2992.8,2992.5,0.006]
[1633063616346,6.17454172,2992.8,2992.6,1.48245924]
[1633063616546,1.16062172,2992.8,2992.6,1.48245924]
[1633063616747,1.16062172,2992.8,2992.7,0.003]
[1633063617347,1.16062172,2992.8,2992.5,1.48240436]
[1633063617546,1.16062172,2992.8,2992.6,0.003]
[1633063617547,6.17454172,2992.8,2992.6,0.003]
[1633063617748,6.17454172,2992.8,2992.6,1.48537425]
[1633063618049,6.17454172,2992.8,2992.7,0.003]
[1633063618651,6.17454172,2992.8,2992.5,1.48236885]
[1633063618852,6.17454172,2992.8,2992.6,0.003]
[1633063619050,6.17454172,2992.8,2992.6,1.4853442]
[1633063619450,1.16062172,2992.8,2992.7,0.003]
[1633063620053,1.16062172,2992.8,2992.5,1.48228761]
[1633063620252,1.16062172,2992.8,2992.6,0.003]
[1633063620451,1.16062172,2992.8,2992.6,1.48528252]
[1633063620651,6.17459172,2992.8,2992.6,1.48528252]
[1633063620852,6.17459172,2992.8,2992.7,0.003]
[1633063621052,6.22369772,2992.8,2992.7,0.003]
[1633063621451,6.22369772,2992.8,2992.5,1.48231947]
[1633063621651,6.22369772,2992.8,2992.6,0.003]
[1633063622052,6.22369772,2992.8,2992.1,0.006]
[1633063622252,3.34307,2992.6,2992.2,1.48233479]
[1633063622452,1.06526295,2992.3,2992.2,1.48233479]
[1633063622952,1.06526295,2992.3,2992.2,0.006]
[1633063623154,6.08010295,2992.3,2992.2,1.48836674]
[1633063623353,5.01484,2992.3,2992.2,1.48836674]
[1633063624154,5.0145,2992.4,2992.2,1.48836674]
[1633063624357,6.15246985,2992.4,2992.3,1.48236093]
[1633063624556,6.15246985,2992.4,2992.3,1.48836093]
[1633063625356,7.10741313,2992.4,2992.3,1.48836093]
[1633063625756,6.15246985,2992.4,2992.3,1.48836093]
[1633063627359,5.0145,2992.4,2992.3,1.48836093]
[1633063628560,6.29208405,2992.4,2992.3,1.48836093]
[1633063629361,7.23840003,2992.4,2992.3,1.48836093]
[1633063630162,6.29208405,2992.4,2992.3,1.48836093]
[1633063630563,6.29208405,2992.4,2992.3,0.26017168]
[1633063630763,6.29208405,2992.4,2992.2,0.00082924]
[1633063630764,0.03306091,2992.3,2992.2,0.00082924]
[1633063630964,2.73238542,2992.3,2992.2,0.00082924]
[1633063631363,4.02638542,2992.3,2992.2,2.924e-05]
[1633063631571,3.34934708,2992.3,2992.2,2.924e-05]
[1633063631771,3.33921463,2992.3,2992.2,2.924e-05]
[1633063631968,19.03649717,2992.3,2991.7,0.003]
[1633063632165,0.056066,2991.8,2991.7,0.003]
[1633063632366,0.056066,2991.8,2991.3,0.006]
[1633063632367,0.256066,2991.8,2991.3,0.006]
[1633063632564,0.24349114,2991.8,2991.3,0.006]
[1633063632965,1.27026777,2991.5,2991.3,0.006]
[1633063633167,5.01692,2991.4,2991.3,0.006]
[1633063649880,5.01692,2991.4,2991.3,0.02133001]
[1633063652881,0.2,2991.5,2991.3,0.02133001]
[1633063653282,5.21598,2991.5,2991.4,0.006]
[1633063653482,0.2,2991.5,2991.4,0.006]
[1633063653683,4.94136188,2992.2,2991.4,0.006]
[1633063653684,1.2,2992.2,2991.4,1.304016]
[1633063653883,1.4537624,2992.3,2991.5,1.29092364]
[1633063654084,1.4537624,2992.3,2991.5,1.29692364]
[1633063654286,0.012311,2992.3,2991.6,0.003]
[1633063654683,5.77544704,2992.3,2991.6,0.003]
[1633063654885,3.355491,2992.3,2991.6,0.003]
[1633063655088,3.355491,2992.3,2991.5,0.006]
[1633063655483,1.26212469,2992.0,2991.5,0.006]
[1633063655883,6.27731469,2992.0,2991.5,0.006]
[1633063656086,5.01519,2992.0,2991.5,0.006]
[1633063656284,6.699051,2992.3,2991.5,0.006]
[1633063656285,3.34346,2992.1,2991.5,0.006]
[1633063656484,0.012311,2992.3,2991.5,0.006]
[1633063657085,1.32963696,2992.0,2991.5,0.006]
[1633063657286,2.04216107,2992.0,2991.5,0.006]
[1633063658290,7.05734107,2992.0,2991.5,0.006]
[1633063658688,7.05734107,2992.0,2991.4,0.006]
[1633063658887,3.34358,2991.9,2991.4,0.006]
[1633063659690,0.012311,2992.3,2991.4,0.006]
[1633063660146,3.355411,2992.3,2991.4,0.006]
[1633063660744,3.355411,2992.3,2991.5,1.43710669]
[1633063660745,1.50731308,2992.1,2991.5,1.43710669]
[1633063661146,6.52212308,2992.1,2991.6,0.003]
[1633063661346,6.52212308,2992.1,2991.6,1.44019138]
[1633063661549,6.52212308,2992.1,2991.6,0.003]
[1633063661747,6.52212308,2992.1,2991.7,0.003]
[1633063661946,6.52212308,2992.1,2991.5,1.43713551]
[1633063662147,6.52212308,2992.1,2991.5,1.44313551]
[1633063662349,6.52212308,2992.1,2991.6,1.44020985]
[1633063662750,6.52212308,2992.1,2991.7,0.003]
[1633063663350,6.52212308,2992.1,2991.5,1.44315003]
[1633063663550,6.52212308,2992.1,2991.6,1.44022046]
[1633063663953,3.355411,2992.3,2991.7,0.003]
[1633063664953,8.370041,2992.3,2991.7,0.003]
[1633063666153,3.355411,2992.3,2991.7,0.003]
[1633063666352,3.355411,2992.3,2991.7,1.44017548]
[1633063666752,3.355411,2992.3,2991.8,0.003]
[1633063667352,1.32827459,2992.0,2991.8,0.003]
[1633063667552,6.34336459,2992.0,2991.8,0.003]
[1633063668353,0.012311,2992.3,2991.8,0.003]
[1633063668554,5.01489,2992.2,2991.8,0.003]
[1633063668753,0.012311,2992.3,2991.8,0.003]
[1633063669354,0.012311,2992.3,2991.5,1.43715713]
[1633063669554,0.012311,2992.3,2991.6,0.003]
[1633063669555,3.34368,2992.1,2991.6,0.003]
[1633063669755,0.99727467,2991.8,2991.6,0.003]
[1633063670154,6.72758816,2991.8,2991.4,0.006]
[1633063670353,5.73031349,2991.8,2991.4,0.006]
[1633063670754,3.34393,2991.8,2991.4,0.006]
[1633063671155,5.01571,2991.6,2991.4,0.006]
[1633063671557,3.34393,2991.8,2991.4,0.006]
[1633063673354,6.68793,2991.8,2991.4,0.006]
[1633063675155,9.20453677,2992.1,2991.5,1.43753968]
[1633063675359,0.2,2992.2,2991.5,1.43753968]
[1633063675555,0.2,2992.2,2991.6,0.003]
[1633063675758,0.2,2992.2,2991.6,1.44055807]
[1633063676155,6.49801477,2992.0,2991.7,0.003]
[1633063676356,3.34368,2991.9,2991.7,0.003]
[1633063676755,3.34368,2991.9,2991.5,1.43766853]
[1633063676956,3.34368,2991.9,2991.7,0.00081988]
[1633063677357,3.34368,2991.9,2991.8,0.003]
[1633063677560,8.35894,2991.9,2991.8,0.003]
[1633063677956,1.48294477,2992.0,2991.8,0.003]
[1633063678559,6.49800477,2992.0,2991.8,0.003]
[1633063686768,5.01506,2992.0,2991.8,0.003]
[1633063686964,0.2,2992.2,2991.8,0.003]
[1633063687564,0.2,2992.2,2991.8,1.44202887]
[1633063687764,0.2,2992.2,2991.8,0.003]
[1633063687964,0.2,2992.2,2991.9,0.003]
[1633063688566,5.21472,2992.2,2991.8,0.003]
[1633063688767,1.14446247,2992.0,2991.8,1.44226605]
[1633063688965,0.2,2992.2,2991.8,0.003]
[1633063689166,0.2,2992.2,2991.9,0.003]
[1633063689967,3.54337,2992.2,2991.9,0.003]
[1633063690367,1.06787484,2992.1,2991.9,0.003]
[1633063690568,5.01499,2992.0,2991.9,0.003]
[1633063692570,5.01499,2992.0,2991.6,1.44004644]
[1633063692770,5.01499,2992.0,2991.7,0.003]
[1633063692968,5.01499,2992.0,2991.7,1.44326307]
[1633063693170,5.01499,2992.0,2991.8,1.4402605]
[1633063693368,5.01499,2992.0,2991.8,0.003]
[1633063693568,3.54337,2992.2,2991.9,0.003]
[1633063693768,0.2,2992.2,2991.6,1.44330297]
[1633063693971,0.2,2992.2,2991.7,0.003]
[1633063694968,1.52001618,2992.2,2991.7,0.003]
[1633063695368,0.2,2992.2,2991.7,0.003]
[1633063695868,0.2,2992.2,2991.7,1.443562]
[1633063696069,0.2,2992.2,2991.8,1.44056351]
[1633063696270,0.2,2992.2,2992.0,0.90386141]